bitfinex-derivatives/quotes_BTCF0:USTF0_20251115
["timestamp","ask_amount","ask_price","bid_price","bid_amount"]
[1763176038946,0.17368275,96335.0,96334.0,0.47077]
[1763176040349,0.12055275,96335.0,96334.0,0.47077]
[1763176042855,0.00015576,96335.0,96334.0,0.47077]
[1763176044458,0.11111576,96335.0,96334.0,0.47077]
[1763176045048,0.00015576,96335.0,96334.0,0.47077]
[1763176046857,0.05328576,96335.0,96334.0,0.47077]
[1763176048153,0.00015576,96335.0,96334.0,0.47077]
[1763176048356,0.3608,96351.0,96350.0,0.10416]
[1763176048357,0.05282,96351.0,96350.0,0.10416]
[1763176048556,0.05282,96351.0,96350.0,0.10635803]
[1763176048757,0.1669288,96351.0,96350.0,0.10635803]
[1763176049258,0.2203388,96351.0,96350.0,0.10635803]
[1763176050058,0.2203388,96351.0,96350.0,0.05333803]
[1763176052151,0.2203388,96351.0,96350.0,0.00219803]
[1763176053166,0.2203388,96351.0,96350.0,0.10635803]
[1763176053557,0.1141088,96351.0,96350.0,0.10635803]
[1763176054066,0.00015576,96360.0,96350.0,0.10635803]
[1763176054067,0.22023972,96357.0,96356.0,0.10416]
[1763176054260,0.10623,96357.0,96356.0,0.10416]
[1763176054466,0.16682972,96357.0,96356.0,0.10416]
[1763176054658,0.22023972,96357.0,96356.0,0.10416]
[1763176055563,0.10623,96357.0,96356.0,0.10416]
[1763176056356,0.10623,96357.0,96356.0,0.05114]
[1763176056556,0.21785783,96357.0,96356.0,0.05114]
[1763176057170,0.21785783,96357.0,96356.0,0.10416]
[1763176064965,0.13682,96352.0,96351.0,0.1651]
[1763176065454,0.24945009,96352.0,96351.0,0.1651]
[1763176066670,0.24945009,96352.0,96351.0,0.11208]
[1763176067068,0.21886009,96352.0,96351.0,0.1651]
[1763176068364,0.00015576,96360.0,96359.0,0.10416]
[1763176068570,0.10638576,96360.0,96359.0,0.10416]
[1763176068770,0.21543719,96360.0,96359.0,0.10416]
[1763176069672,0.10920719,96360.0,96359.0,0.10416]
[1763176070072,0.00015576,96360.0,96359.0,0.2080269]
[1763176071571,0.00025943,96366.0,96365.0,0.10416]
[1763176072162,0.55758709,96387.0,96385.0,0.10416]
[1763176072163,0.10623,96386.0,96385.0,0.10416]
[1763176072565,0.22494168,96386.0,96385.0,0.10416]
[1763176073374,0.10623,96381.0,96380.0,0.00219803]
[1763176073568,0.10623,96381.0,96380.0,0.10635803]
[1763176073770,0.22601309,96381.0,96380.0,0.10635803]
[1763176074174,0.11978309,96381.0,96380.0,0.11866731]
[1763176074565,0.22262709,96387.0,96386.0,0.10416]
[1763176074771,0.10623,96387.0,96386.0,0.10416]
[1763176075274,0.05292292,96395.0,96394.0,0.10416]
[1763176075576,0.21619788,96395.0,96394.0,0.10416]
[1763176075979,0.21619788,96395.0,96394.0,0.46496]
[1763176076173,0.10996788,96395.0,96394.0,0.46496]
[1763176076373,0.00010292,96395.0,96394.0,0.46496]
[1763176078773,0.09256292,96395.0,96394.0,0.46496]
[1763176078973,0.20381367,96395.0,96394.0,0.46496]
[1763176079773,0.15630367,96395.0,96394.0,0.46496]
[1763176079980,0.20381367,96395.0,96394.0,0.46496]
[1763176080779,0.20381367,96395.0,96394.0,0.3608]
[1763176081378,0.20681367,96395.0,96394.0,0.3608]
[1763176081778,0.09246,96385.0,96384.0,0.3608]
[1763176082086,0.20396946,96385.0,96384.0,0.3608]
[1763176082475,0.12103,96381.0,96380.0,0.00219803]
[1763176082678,0.09246,96377.0,96376.0,0.00015568]
[1763176083080,0.21182463,96377.0,96376.0,0.00015568]
[1763176084383,0.21182463,96377.0,96376.0,0.04655568]
[1763176084678,0.21582463,96377.0,96376.0,0.00015568]
[1763176085186,0.21582463,96377.0,96376.0,0.09357568]
[1763176085480,0.21182463,96377.0,96376.0,0.09357568]
[1763176085681,0.21482463,96377.0,96376.0,0.09357568]
[1763176085880,0.21482463,96377.0,96376.0,0.45437568]
[1763176086679,0.16731463,96377.0,96376.0,0.45437568]
[1763176086985,0.11936463,96377.0,96376.0,0.45437568]
[1763176087184,0.12236463,96377.0,96376.0,0.45437568]
[1763176088180,0.45326,96392.0,96391.0,0.09342]
[1763176088587,0.5686152,96392.0,96391.0,0.09342]
[1763176089480,0.2078152,96392.0,96391.0,0.09342]
[1763176089682,0.2078152,96392.0,96376.0,0.36095568]
[1763176089683,0.09246,96377.0,96376.0,0.38855792]
[1763176089887,0.09246,96377.0,96365.0,0.3608]
[1763176089888,0.09246,96366.0,96365.0,0.3608]
[1763176090280,0.20522498,96366.0,96365.0,0.3608]
[1763176090988,0.09214,96358.0,96356.0,0.00015568]
[1763176091281,0.20478986,96358.0,96356.0,0.00015568]
[1763176091786,0.09226,96338.0,96337.0,0.04517]
[1763176092082,0.09226,96337.0,96336.0,0.3608]
[1763176092479,0.21038802,96337.0,96336.0,0.3608]
[1763176093283,0.21038802,96337.0,96336.0,0.40597]
[1763176094086,0.21338802,96337.0,96336.0,0.40597]
[1763176095086,0.21338802,96337.0,96336.0,0.44906]
[1763176097385,0.16619802,96337.0,96336.0,0.44906]
[1763176097586,0.16619802,96337.0,96336.0,0.47742]
[1763176098077,0.003,96337.0,96336.0,0.47742]
[1763176099087,0.00015568,96346.0,96345.0,0.11662]
[1763176099593,0.17919428,96370.0,96360.0,0.11662]
[1763176099891,0.47223508,96361.0,96360.0,0.11881803]
[1763176100087,0.11143508,96361.0,96360.0,0.11881803]
[1763176100887,0.11543508,96361.0,96360.0,0.47961803]
[1763176101888,0.20769508,96361.0,96360.0,0.40816803]
[1763176102486,0.20769508,96361.0,96360.0,0.47961803]
[1763176102894,0.20769508,96361.0,96360.0,0.04736803]
[1763176103094,0.20769508,96361.0,96360.0,0.11881803]
[1763176103990,0.20769508,96361.0,96360.0,0.00219803]
[1763176104185,0.20769508,96361.0,96360.0,0.11881803]
[1763176105194,0.11543508,96361.0,96360.0,0.11881803]
[1763176105987,0.00015568,96370.0,96367.0,0.103858]
[1763176106192,0.00015568,96370.0,96369.0,0.08826]
[1763176107392,0.00415568,96370.0,96369.0,0.08826]
[1763176108701,0.00015568,96370.0,96369.0,0.08826]
[1763176108893,0.00415568,96370.0,96369.0,0.08826]
[1763176109291,0.00015568,96370.0,96369.0,0.08826]
[1763176109492,0.00415568,96370.0,96369.0,0.08826]
[1763176109893,0.00015568,96370.0,96369.0,0.08826]
[1763176110093,0.00315568,96370.0,96369.0,0.08826]
[1763176111504,0.00015568,96370.0,96369.0,0.08826]
[1763176111696,0.00315568,96370.0,96369.0,0.08826]
[1763176112001,0.04705568,96370.0,96369.0,0.08826]
[1763176112403,0.00315568,96370.0,96369.0,0.08826]
[1763176112797,0.00015568,96370.0,96369.0,0.08826]
[1763176112998,0.00315568,96370.0,96369.0,0.08826]
[1763176113398,0.00015568,96370.0,96369.0,0.08826]
[1763176113601,0.00315568,96370.0,96369.0,0.08826]
[1763176114595,0.55357828,96390.0,96389.0,0.08704]
[1763176114596,0.0439,96390.0,96389.0,0.08704]
[1763176115007,0.16115871,96390.0,96389.0,0.08704]
[1763176115303,0.20281871,96390.0,96389.0,0.08704]
[1763176115697,0.20681871,96390.0,96389.0,0.08704]
[1763176116204,0.20281871,96390.0,96389.0,0.08704]
[1763176116403,0.20681871,96390.0,96389.0,0.08704]
[1763176117104,0.12125871,96390.0,96389.0,0.08704]
[1763176117305,0.12125871,96390.0,96389.0,0.1908746]
[1763176117707,0.11725871,96390.0,96389.0,0.20295395]
[1763176117905,0.12125871,96390.0,96389.0,0.09911935]
[1763176118207,0.11677234,96394.0,96393.0,0.08704]
[1763176118414,0.005,96396.0,96394.0,0.1908692]
[1763176119609,0.04964946,96395.0,96394.0,0.1908692]
[1763176120304,0.04964946,96395.0,96394.0,0.08704]
[1763176120801,0.25203486,96395.0,96394.0,0.08704]
[1763176122105,0.25103486,96395.0,96394.0,0.08704]
[1763176123497,0.25103486,96395.0,96394.0,0.04439]
[1763176123897,0.25103486,96395.0,96393.0,0.3608]
[1763176124102,0.08556,96394.0,96393.0,0.3608]
[1763176124611,0.08556,96391.0,96390.0,0.00219803]
[1763176124910,0.20194531,96391.0,96390.0,0.00219803]
[1763176125503,0.20194531,96391.0,96390.0,0.08923803]
[1763176125813,0.20194531,96391.0,96390.0,0.11647803]
[1763176128415,0.20194531,96391.0,96384.0,0.14798]
[1763176128416,0.08556,96385.0,96384.0,0.14798]
[1763176128711,0.19472892,96385.0,96384.0,0.14798]
[1763176129215,0.10916892,96385.0,96384.0,0.14798]
[1763176129518,0.08556,96385.0,96384.0,0.14798]
[1763176129810,0.19906601,96385.0,96384.0,0.14798]
[1763176130201,0.19906601,96385.0,96384.0,0.06094]
[1763176131106,0.08556,96382.0,96381.0,0.07163]
[1763176131304,0.08556,96382.0,96381.0,0.11428]
[1763176131504,0.19477382,96382.0,96381.0,0.08704]
[1763176131800,0.19477382,96382.0,96380.0,0.08939371]
[1763176131801,0.08556,96381.0,96380.0,0.08939371]
[1763176132203,0.20219614,96381.0,96380.0,0.08939371]
[1763176132417,0.20219614,96381.0,96380.0,0.00235371]
[1763176134408,0.20219614,96381.0,96380.0,0.04674371]
[1763176135009,0.20219614,96381.0,96380.0,0.08939371]
[1763176141107,0.11663614,96381.0,96380.0,0.08939371]
[1763176141315,0.19717614,96381.0,96380.0,0.00235371]
[1763176141520,0.08054,96381.0,96380.0,0.00235371]
[1763176141718,0.19650165,96381.0,96380.0,0.00235371]
[1763176141914,0.09829,96376.0,96375.0,0.08508]
[1763176142216,0.2179605,96376.0,96375.0,0.08508]
[1763176142422,0.08054,96361.0,96360.0,0.10265]
[1763176142607,0.08054,96361.0,96360.0,0.10338267]
[1763176142925,0.2002105,96361.0,96360.0,0.07895267]
[1763176143220,0.2002105,96361.0,96360.0,0.10338267]
[1763176145417,0.2002105,96361.0,96360.0,0.00073267]
[1763176146124,0.08054,96356.0,96355.0,0.43902]
[1763176146521,0.19765163,96356.0,96355.0,0.43902]
[1763176148125,0.11711163,96356.0,96355.0,0.43902]
[1763176148428,0.00219803,96360.0,96355.0,0.3608]
[1763176148429,0.11231142,96359.0,96355.0,0.3608]
[1763176148617,0.11231142,96359.0,96358.0,0.07822]
[1763176149824,0.00015568,96370.0,96369.0,0.07822]
[1763176150026,0.00235371,96370.0,96369.0,0.07822]
[1763176150225,0.11466125,96370.0,96369.0,0.07822]
[1763176153030,0.19042125,96370.0,96369.0,0.07822]
[1763176154028,0.15347125,96370.0,96369.0,0.07822]
[1763176155022,0.11466125,96370.0,96369.0,0.07822]
[1763176155224,0.11466125,96370.0,96369.0,0.10586367]
[1763176155418,0.11466125,96370.0,96369.0,0.07822]
[1763176156931,0.00235371,96370.0,96369.0,0.07822]
[1763176157433,0.00235371,96370.0,96369.0,0.11506405]
[1763176157639,0.00235371,96370.0,96369.0,0.07822]
[1763176158129,0.00015568,96370.0,96369.0,0.1820761]
[1763176159135,0.00015568,96370.0,96369.0,0.11506405]
[1763176160024,0.03896568,96370.0,96369.0,0.11506405]
[1763176160225,0.00015568,96370.0,96369.0,0.11506405]
[1763176161327,0.00015568,96370.0,96369.0,0.07822]
[1763176164236,0.48543769,96389.0,96388.0,0.07931]
[1763176164739,0.60335137,96389.0,96388.0,0.07931]
[1763176166139,0.03896,96380.0,96379.0,0.00015568]
[1763176166435,0.19129534,96380.0,96379.0,0.00015568]
[1763176167937,0.11538534,96380.0,96364.0,0.07191]
[1763176168138,0.13554623,96374.0,96364.0,0.07191]
[1763176168338,0.00219803,96370.0,96368.0,0.02106]
[1763176168736,0.11302467,96369.0,96368.0,0.05683]
[1763176169630,0.11302467,96369.0,96360.0,0.08509]
[1763176169831,0.11302467,96369.0,96362.0,0.09393]
[1763176170132,0.11302467,96369.0,96368.0,0.09297]
[1763176174438,0.11425035,96377.0,96376.0,0.09297]
[1763176174637,0.00015568,96378.0,96377.0,0.07191]
[1763176174940,0.11440603,96378.0,96377.0,0.07191]
[1763176181341,0.00015568,96378.0,96377.0,0.07191]
[1763176182048,0.00015568,96378.0,96377.0,0.1087899]
[1763176183044,0.00015568,96378.0,96377.0,0.07191]
[1763176183440,0.11214475,96378.0,96377.0,0.07191]
[1763176183836,0.11214475,96378.0,96377.0,0.00104568]
[1763176184036,0.47294475,96378.0,96377.0,0.00104568]
[1763176186043,0.47294475,96378.0,96359.0,0.00015568]
[1763176186247,0.3608,96369.0,96359.0,0.00015568]
[1763176186447,0.3608,96369.0,96360.0,0.08582267]
[1763176186647,0.10827487,96368.0,96362.0,0.09393]
[1763176188444,0.10827487,96368.0,96367.0,0.07191]
[1763176188845,0.12025006,96369.0,96368.0,0.07191]
[1763176189149,0.00219803,96370.0,96368.0,0.07191]
[1763176189336,0.11910418,96369.0,96368.0,0.07191]
[1763176191244,0.11910418,96369.0,96368.0,0.43271]
[1763176192644,0.11910418,96369.0,96368.0,0.45377]
[1763176193446,0.11155292,96377.0,96376.0,0.09297]
[1763176193750,0.00015568,96378.0,96377.0,0.07191]
[1763176194142,0.1117086,96378.0,96377.0,0.07191]
[1763176200057,0.1117086,96378.0,96377.0,0.1757575]
[1763176200350,0.00015568,96378.0,96377.0,0.07191]
[1763176201347,0.3608,96399.0,96394.0,0.06428]
[1763176201849,0.15718629,96395.0,96394.0,0.06428]
[1763176203956,0.10853683,96395.0,96394.0,0.06428]
[1763176216153,0.00010292,96404.0,96403.0,0.06281]
[1763176216353,0.03272292,96404.0,96403.0,0.42361]
[1763176216660,0.17474398,96404.0,96403.0,0.42361]
[1763176218862,0.17474398,96404.0,96403.0,0.43499111]
[1763176219059,0.17474398,96404.0,96403.0,0.42361]
[1763176220658,0.17474398,96404.0,96403.0,0.43498656]
[1763176221260,0.17474398,96404.0,96403.0,0.42361]
[1763176224958,0.53554398,96404.0,96403.0,0.06281]
[1763176230758,0.17474398,96404.0,96403.0,0.06281]
[1763176233065,0.14141398,96404.0,96403.0,0.06281]
[1763176233467,0.17156398,96404.0,96403.0,0.06281]
[1763176235268,0.10879398,96404.0,96403.0,0.06281]
[1763176236165,0.10879398,96404.0,96403.0,0.1666295]
[1763176236367,0.10879398,96404.0,96403.0,0.06281]
[1763176237662,0.14030398,96404.0,96403.0,0.06281]
[1763176237865,0.17045398,96404.0,96403.0,0.06281]
[1763176239674,0.17045398,96404.0,96403.0,0.21251]
[1763176240174,0.14030398,96404.0,96403.0,0.21251]
[1763176240369,0.17045398,96404.0,96403.0,0.21251]
[1763176241168,0.10879398,96404.0,96403.0,0.21251]
[1763176242174,0.10539068,96404.0,96403.0,0.21251]
[1763176242375,0.10639068,96404.0,96403.0,0.21251]
[1763176243174,0.002,96404.0,96403.0,0.21251]
[1763176243371,0.003,96404.0,96403.0,0.21251]
[1763176244575,0.001,96404.0,96403.0,0.2493899]
[1763176244874,0.003,96404.0,96403.0,0.2493899]
[1763176245769,0.001,96404.0,96403.0,0.21251]
[1763176245963,0.003,96404.0,96403.0,0.21251]
[1763176246167,0.003,96404.0,96403.0,0.3163295]
[1763176246772,0.06466,96404.0,96403.0,0.21251]
[1763176247075,0.18342428,96404.0,96403.0,0.21251]
[1763176248576,0.18242428,96404.0,96403.0,0.21251]
[1763176248770,0.18342428,96404.0,96403.0,0.21251]
[1763176250578,0.18142428,96404.0,96403.0,0.21251]
[1763176250766,0.18342428,96404.0,96403.0,0.21251]
[1763176251364,0.18342428,96404.0,96403.0,0.06281]
[1763176251766,0.18142428,96404.0,96403.0,0.06281]
[1763176252081,0.18342428,96404.0,96403.0,0.06281]
[1763176252673,0.18342428,96404.0,96400.0,0.00073267]
[1763176252979,0.06166,96401.0,96400.0,0.06295267]
[1763176253176,0.12176428,96404.0,96403.0,0.1660395]
[1763176253380,0.003,96404.0,96403.0,0.1660395]
[1763176253775,0.002,96404.0,96403.0,0.06222]
[1763176254079,0.003,96404.0,96403.0,0.06222]
[1763176255177,0.002,96404.0,96403.0,0.06222]
[1763176255383,0.003,96404.0,96403.0,0.06222]
[1763176257686,0.001,96404.0,96403.0,0.06222]
[1763176257883,0.003,96404.0,96403.0,0.06222]
[1763176258484,0.002,96404.0,96403.0,0.06222]
[1763176258780,0.003,96404.0,96403.0,0.06222]
[1763176259780,0.001,96404.0,96403.0,0.06222]
[1763176260088,0.003,96404.0,96403.0,0.06222]
[1763176262984,0.003,96404.0,96403.0,0.21192]
[1763176263687,0.03071,96404.0,96403.0,0.21192]
[1763176263990,0.059,96404.0,96403.0,0.21192]
[1763176264690,0.058,96404.0,96403.0,0.21192]
[1763176264886,0.059,96404.0,96403.0,0.21192]
[1763176265081,0.17317315,96404.0,96403.0,0.21192]
[1763176265282,0.53397315,96404.0,96403.0,0.1497]
[1763176265986,0.53297315,96404.0,96403.0,0.1497]
[1763176266683,0.53397315,96404.0,96403.0,0.1497]
[1763176267386,0.056,96390.0,96389.0,0.41958]
[1763176267582,0.05819803,96390.0,96389.0,0.41958]
[1763176267783,0.17533552,96390.0,96389.0,0.41958]
[1763176267984,0.17533552,96390.0,96389.0,0.3608]
[1763176268593,0.17633552,96390.0,96389.0,0.3608]
[1763176269089,0.17633552,96390.0,96389.0,0.39015]
[1763176269294,0.17533552,96390.0,96389.0,0.41958]
[1763176269589,0.17833552,96390.0,96389.0,0.41958]
[1763176272385,0.17633552,96390.0,96389.0,0.41958]
[1763176272586,0.17833552,96390.0,96389.0,0.41958]
[1763176277189,0.12233552,96390.0,96389.0,0.41958]
[1763176277797,0.14975552,96390.0,96389.0,0.41958]
[1763176278199,0.17627552,96390.0,96389.0,0.41958]
[1763176278590,0.14975552,96390.0,96389.0,0.41958]
[1763176278991,0.17627552,96390.0,96389.0,0.41958]
[1763176279190,0.17427552,96390.0,96389.0,0.05878]
[1763176279394,0.17627552,96390.0,96389.0,0.05878]
[1763176279800,0.17527552,96390.0,96389.0,0.05878]
[1763176279999,0.17627552,96390.0,96389.0,0.05878]
[1763176284301,0.17427552,96390.0,96389.0,0.05878]
[1763176284490,0.17627552,96390.0,96389.0,0.05878]
[1763176285095,0.05394,96386.0,96385.0,0.05351568]
[1763176285594,0.16248879,96386.0,96385.0,0.00015568]
[1763176285803,0.52328879,96386.0,96385.0,0.00015568]
[1763176286196,0.52428879,96386.0,96385.0,0.00015568]
[1763176286400,0.52428879,96386.0,96385.0,0.05351568]
[1763176287604,0.52628879,96386.0,96385.0,0.05351568]
[1763176289198,0.52628879,96386.0,96385.0,0.02710568]
[1763176289597,0.52628879,96386.0,96385.0,0.05170568]
[1763176291197,0.16548879,96386.0,96385.0,0.05170568]
[1763176293202,0.11154879,96386.0,96385.0,0.05170568]
[1763176293399,0.16327879,96386.0,96385.0,0.05170568]
[1763176294201,0.16127879,96386.0,96385.0,0.05170568]
[1763176294407,0.16327879,96386.0,96385.0,0.05170568]
[1763176294902,0.16227879,96386.0,96385.0,0.05170568]
[1763176295102,0.16327879,96386.0,96385.0,0.05170568]
[1763176295702,0.16227879,96386.0,96385.0,0.05170568]
[1763176296001,0.16327879,96386.0,96385.0,0.05170568]
[1763176297308,0.16127879,96386.0,96385.0,0.05170568]
[1763176297505,0.16327879,96386.0,96385.0,0.05170568]
[1763176298104,0.16227879,96386.0,96385.0,0.05170568]
[1763176298305,0.16327879,96386.0,96385.0,0.05170568]
[1763176300515,0.16127879,96386.0,96385.0,0.05170568]
[1763176300814,0.16327879,96386.0,96385.0,0.05170568]
[1763176303015,0.16127879,96386.0,96385.0,0.05170568]
[1763176303207,0.16327879,96386.0,96385.0,0.05170568]
[1763176307714,0.16327879,96386.0,96385.0,0.02710568]
[1763176307911,0.16327879,96386.0,96385.0,0.05170568]
[1763176308112,0.16327879,96386.0,96385.0,0.06767568]
[1763176313114,0.11154879,96386.0,96385.0,0.06767568]
[1763176313421,0.003,96386.0,96385.0,0.53231458]
[1763176313606,0.05173,96405.0,96404.0,0.05155]
[1763176313807,0.02700932,96406.0,96405.0,0.02695]
[1763176314008,0.00025932,96406.0,96405.0,0.05155]
[1763176314318,0.11862157,96406.0,96405.0,0.05155]
[1763176314708,0.11862157,96406.0,96405.0,0.41235]
[1763176316113,0.00225932,96406.0,96405.0,0.41235]
[1763176316514,0.00225932,96406.0,96400.0,0.01670267]
[1763176316515,0.05173,96401.0,96400.0,0.02768267]
[1763176316816,0.16973902,96401.0,96400.0,0.02768267]
[1763176317320,0.16973902,96401.0,96400.0,0.05228267]
[1763176317821,0.16973902,96401.0,96400.0,0.02768267]
[1763176318813,0.17073902,96401.0,96400.0,0.00073267]
[1763176321121,0.17073902,96401.0,96400.0,0.04746267]
[1763176322526,0.17073902,96401.0,96400.0,0.02363267]
[1763176323229,0.16973902,96401.0,96400.0,0.02363267]
[1763176323524,0.17073902,96401.0,96400.0,0.02363267]
[1763176324222,0.17073902,96401.0,96400.0,0.04746267]
[1763176325118,0.17073902,96401.0,96400.0,0.00073267]
[1763176325318,0.17073902,96401.0,96400.0,0.04746267]
[1763176326726,0.17073902,96401.0,96400.0,0.00073267]
[1763176327025,0.04804,96391.0,96390.0,0.0229]
[1763176327322,0.16495179,96391.0,96390.0,0.02363267]
[1763176328128,0.16495179,96391.0,96390.0,0.04746267]
[1763176328722,0.16595179,96391.0,96390.0,0.04746267]
[1763176329423,0.16595179,96391.0,96390.0,0.06118267]
[1763176331731,0.16595179,96391.0,96390.0,0.02363267]
[1763176332136,0.16595179,96391.0,96390.0,0.04699267]
[1763176333039,0.16595179,96391.0,96390.0,0.05984267]
[1763176334925,0.16595179,96391.0,96390.0,0.02363267]
[1763176335526,0.16595179,96391.0,96390.0,0.04699267]
[1763176336432,0.16595179,96391.0,96390.0,0.05984267]
[1763176337828,0.16595179,96391.0,96390.0,0.00073267]
[1763176338732,0.16595179,96391.0,96390.0,0.02409267]
[1763176338928,0.16495179,96391.0,96390.0,0.02409267]
[1763176339235,0.16595179,96391.0,96390.0,0.04745267]
[1763176340637,0.16495179,96391.0,96390.0,0.04745267]
[1763176340824,0.16595179,96391.0,96390.0,0.04745267]
[1763176341429,0.16495179,96391.0,96390.0,0.04745267]
[1763176341630,0.16595179,96391.0,96390.0,0.04745267]
[1763176344440,0.16595179,96391.0,96390.0,0.06030267]
[1763176346141,0.11791179,96391.0,96390.0,0.06030267]
[1763176349546,0.11691179,96391.0,96390.0,0.09720175]
[1763176349742,0.001,96391.0,96390.0,0.06030267]
[1763176350138,0.00025932,96406.0,96405.0,0.04578]
[1763176350343,0.00025932,96406.0,96405.0,0.40658]
[1763176350547,0.10853527,96406.0,96405.0,0.40658]
[1763176351244,0.10953527,96406.0,96405.0,0.40658]
[1763176351746,0.15039527,96406.0,96405.0,0.40658]
[1763176352847,0.14939527,96406.0,96405.0,0.40658]
[1763176353239,0.12896527,96406.0,96405.0,0.40658]
[1763176354038,0.10853527,96406.0,96405.0,0.40658]
[1763176354440,0.14939527,96406.0,96405.0,0.40658]
[1763176357858,0.14939527,96406.0,96405.0,0.04578]
[1763176361771,0.04086,96403.0,96402.0,0.02305]
[1763176362170,0.14950687,96403.0,96402.0,0.02305]
[1763176362370,0.04086,96402.0,96401.0,0.17275]
[1763176362767,0.15785558,96402.0,96401.0,0.02305]
[1763176362968,0.15785558,96402.0,96401.0,0.04578]
[1763176370075,0.11699558,96402.0,96401.0,0.04578]
[1763176370477,0.15692076,96405.0,96404.0,0.04578]
[1763176370681,0.04086,96405.0,96404.0,0.04578]
[1763176371075,0.16013101,96405.0,96404.0,0.04578]
[1763176373079,0.13970101,96405.0,96404.0,0.04578]
[1763176373281,0.16013101,96405.0,96404.0,0.40658]
[1763176374272,0.13970101,96405.0,96404.0,0.40658]
[1763176375275,0.16013101,96405.0,96404.0,0.40658]
[1763176376083,0.11927101,96405.0,96404.0,0.40658]
[1763176377085,0.00025932,96406.0,96404.0,0.5103984]
[1763176377289,0.3608,96419.0,96404.0,0.5103984]
[1763176377290,0.38123,96419.0,96418.0,0.04578]
[1763176377781,0.49789078,96419.0,96418.0,0.04578]
[1763176378088,0.15752078,96419.0,96418.0,0.04578]
[1763176378775,0.11666078,96419.0,96418.0,0.04578]
[1763176378983,0.12388151,96430.0,96429.0,0.04525]
[1763176379282,0.16053119,96430.0,96429.0,0.04525]
[1763176379980,0.11967119,96430.0,96429.0,0.04525]
[1763176380483,0.11747316,96430.0,96429.0,0.04525]
[1763176380689,0.005,96436.0,96435.0,0.04525]
[1763176381090,0.12318013,96436.0,96435.0,0.04525]
[1763176381476,0.01651397,96436.0,96435.0,0.149035]
[1763176381681,0.01359,96462.0,96445.0,0.1329143]
[1763176381880,0.01359,96462.0,96445.0,0.4937143]
[1763176382081,0.01359,96462.0,96445.0,0.5305181]
[1763176382382,0.08302151,96460.0,96445.0,0.4937143]
[1763176383083,0.05959,96462.0,96461.0,0.02914]
[1763176386093,0.01359,96468.0,96461.0,0.02914]
[1763176386289,0.02778,96476.0,96475.0,0.02862]
[1763176386488,0.02778,96476.0,96475.0,0.38942]
[1763176386692,0.13890561,96476.0,96475.0,0.38942]
[1763176386996,0.16212561,96476.0,96475.0,0.38942]
[1763176387292,0.16212561,96476.0,96475.0,0.37511]
[1763176387695,0.16212561,96476.0,96475.0,0.38942]
[1763176389299,0.005,96476.0,96475.0,0.38942]
[1763176391689,0.005,96476.0,96475.0,0.53912]
[1763176391889,0.01359,96509.0,96485.0,0.02862]
[1763176392091,0.08302151,96500.0,96485.0,0.53912]
[1763176392692,0.01359,96509.0,96485.0,0.53912]
[1763176393995,0.04396911,96486.0,96485.0,0.53912]
[1763176395101,0.04396911,96486.0,96480.0,0.00073267]
[1763176395102,0.0573,96481.0,96480.0,0.00073267]
[1763176395303,0.0573,96481.0,96465.0,0.3608]
[1763176395304,0.0573,96467.0,96465.0,0.3608]
[1763176395594,0.17132035,96467.0,96465.0,0.3608]
[1763176395797,0.17132035,96467.0,96465.0,0.3259555]
[1763176395997,0.04371,96456.0,96455.0,0.04373]
[1763176396202,0.02486803,96460.0,96459.0,0.04373]
[1763176396404,0.00219803,96460.0,96459.0,0.04373]
[1763176396599,0.16251909,96460.0,96459.0,0.04373]
[1763176396796,0.16251909,96460.0,96459.0,0.02239]
[1763176396999,0.04590803,96460.0,96459.0,0.04373]
[1763176397194,0.02486803,96460.0,96459.0,0.04373]
[1763176397395,0.40451,96467.0,96466.0,0.04373]
[1763176397700,0.51375644,96467.0,96466.0,0.04373]
[1763176398102,0.40451,96467.0,96466.0,0.04373]
[1763176398702,0.00015492,96469.0,96468.0,0.04373]
[1763176399096,0.00015492,96469.0,96468.0,0.40453]
[1763176400297,0.00025911,96486.0,96485.0,0.04373]
[1763176401202,0.02292911,96486.0,96485.0,0.04373]
[1763176401593,0.04396911,96486.0,96485.0,0.04373]
[1763176403808,0.04396911,96486.0,96485.0,0.19343]
[1763176408109,0.00025911,96486.0,96485.0,0.2971613]
[1763176412598,0.00025911,96486.0,96485.0,0.19343]
[1763176412806,0.00025911,96486.0,96485.0,0.2971613]
[1763176413210,0.02211911,96486.0,96485.0,0.19343]
[1763176414311,0.04329911,96486.0,96485.0,0.19343]
[1763176422721,0.16184966,96486.0,96485.0,0.1497]
[1763176423114,0.16184966,96486.0,96485.0,0.19267]
[1763176423622,0.16184966,96486.0,96485.0,0.1497]
[1763176423818,0.16184966,96486.0,96485.0,0.19267]
[1763176424926,0.04329911,96486.0,96485.0,0.19267]
[1763176425221,0.1551203,96486.0,96485.0,0.19267]
[1763176425610,0.1120803,96486.0,96485.0,0.19267]
[1763176425810,0.00025911,96486.0,96485.0,0.2964013]
[1763176431223,0.00025911,96486.0,96485.0,0.19267]
[1763176432418,0.02211911,96486.0,96485.0,0.19267]
[1763176432615,0.04329911,96486.0,96485.0,0.19267]
[1763176432924,0.05657911,96486.0,96485.0,0.19267]
[1763176433315,0.04329911,96486.0,96485.0,0.19267]
[1763176434926,0.00025911,96486.0,96485.0,0.2964013]
[1763176435119,0.00025911,96486.0,96485.0,0.19267]
[1763176435421,0.00025911,96486.0,96485.0,0.04297]
[1763176435621,0.04329911,96486.0,96485.0,0.02117]
[1763176435821,0.04329911,96486.0,96485.0,0.04297]
[1763176436125,0.04304,96505.0,96488.0,0.01167]
[1763176436320,0.04304,96505.0,96504.0,0.04297]
[1763176436722,0.15738888,96505.0,96504.0,0.04297]
[1763176437723,0.02645,96516.0,96515.0,0.04413]
[1763176438626,0.005,96516.0,96515.0,0.04413]
[1763176439421,0.02645,96516.0,96515.0,0.04413]
[1763176439622,0.04911,96516.0,96515.0,0.04413]
[1763176440225,0.06239,96516.0,96515.0,0.04413]
[1763176440934,0.04411,96515.0,96514.0,0.3608]
[1763176441225,0.15368848,96515.0,96514.0,0.3608]
[1763176441431,0.15368848,96515.0,96514.0,0.40493]
[1763176442729,0.10957848,96515.0,96514.0,0.40493]
[1763176442926,0.005,96516.0,96515.0,0.147829]
[1763176443432,0.005,96516.0,96515.0,0.508629]
[1763176444326,0.05739,96537.0,96536.0,0.04413]
[1763176444722,0.1740735,96537.0,96536.0,0.04413]
[1763176445726,0.1740735,96537.0,96527.0,0.40508542]